bitfinex-derivatives/quotes_SOLF0:USTF0_20250311
["timestamp","ask_amount","ask_price","bid_price","bid_amount"]
[1741663233846,5.17248252,120.51,120.46,47.1679]
[1741663234046,0.0626781,120.52,120.46,47.1679]
[1741663234247,17.0845622,120.52,120.46,8.4479]
[1741663234447,8.3027,120.49,120.46,8.4479]
[1741663234843,0.05555275,120.49,120.46,8.4479]
[1741663235044,8.3037,120.48,120.44,38.72]
[1741663235441,8.3034,120.48,120.44,38.72]
[1741663235846,0.05555275,120.49,120.41,68.1058841]
[1741663236045,17.0218841,120.48,120.41,68.1058841]
[1741663236246,8.3053,120.45,120.41,51.084]
[1741663236449,0.06221399,120.46,120.41,51.084]
[1741663236948,8.36741399,120.46,120.42,8.3069]
[1741663237947,8.3053,120.45,120.41,20.6718]
[1741663238143,17.0218841,120.44,120.38,90.31747811]
[1741663238545,0.05953853,120.42,120.38,90.31747811]
[1741663239147,0.05953853,120.42,120.39,8.3094]
[1741663239550,0.05953853,120.42,120.38,90.31747811]
[1741663239752,0.05953853,120.42,120.36,38.72]
[1741663240348,8.36733853,120.42,120.37,8.3106]
[1741663240547,8.36733853,120.42,120.36,38.72]
[1741663241155,8.36733853,120.42,120.37,8.3106]
[1741663241649,8.36733853,120.42,120.38,8.3101]
[1741663241842,8.36733853,120.42,120.36,38.72]
[1741663242041,8.3081,120.41,120.36,38.72]
[1741663242248,0.05953853,120.42,120.36,38.72]
[1741663242554,0.05953853,120.42,120.31,17.0218841]
[1741663242555,17.0218841,120.4,120.31,17.0218841]
[1741663242753,17.0218841,120.4,120.32,1.49631961]
[1741663243248,0.06164758,120.37,120.32,1.49631961]
[1741663243454,0.06164758,120.37,120.35,17.0218841]
[1741663243652,0.06164758,120.37,120.35,55.7418841]
[1741663243953,0.06164758,120.37,120.35,38.72]
[1741663244454,0.06164758,120.37,120.36,8.3115]
[1741663244754,0.06164758,120.37,120.35,38.72]
[1741663244951,0.06164758,120.37,120.31,4.0096]
[1741663245456,0.06164758,120.37,120.32,8.3141]
[1741663246048,8.37274758,120.37,120.32,8.3141]
[1741663246451,0.06164758,120.37,120.31,12.3243]
[1741663246752,0.06164758,120.37,120.31,4.0096]
[1741663247549,17.0218841,120.35,120.29,4.2556]
[1741663247946,55.7418841,120.35,120.29,4.2556]
[1741663248152,0.0528347,120.33,120.29,4.2556]
[1741663248353,0.0528347,120.33,120.29,8.3162]
[1741663248852,0.0528347,120.33,120.3,8.3155]
[1741663250547,0.0528347,120.33,120.31,8.3147]
[1741663251154,0.0528347,120.33,120.3,8.3155]
[1741663251756,0.0528347,120.33,120.32,8.3143]
[1741663252650,29.9398841,120.39,120.31,38.72]
[1741663252850,29.9398841,120.39,120.35,8.3117]
[1741663253356,29.9398841,120.39,120.32,17.0218841]
[1741663253557,29.9398841,120.39,120.34,8.3128]
[1741663253758,8.3106,120.38,120.31,38.72]
[1741663253957,8.3106,120.38,120.35,0.0528347]
[1741663253958,8.36731533,120.38,120.35,0.0528347]
[1741663254765,0.05671533,120.38,120.35,0.0528347]
[1741663255356,8.3112,120.37,120.35,0.0528347]
[1741663256060,17.0218841,120.37,120.35,0.0528347]
[1741663256261,47.0115,120.36,120.35,0.0528347]
[1741663257961,38.7,120.36,120.35,0.0528347]
[1741663258158,38.7,120.36,120.28,55.7218841]
[1741663258659,47.0119,120.36,120.31,8.3144]
[1741663258860,38.7,120.36,120.28,55.7218841]
[1741663259060,29.9398841,120.39,120.3,17.0218841]
[1741663259261,4.2123,120.39,120.32,17.0218841]
[1741663259457,17.0218841,120.41,120.33,8.48464098]
[1741663259662,8.4953,120.42,120.34,17.0218841]
[1741663259663,51.2001,120.42,120.34,17.0218841]
[1741663260052,59.5081,120.42,120.38,8.3098]
[1741663260355,17.0218841,120.45,120.37,38.7]
[1741663260555,8.4953,120.48,120.4,17.0218841]
[1741663260760,17.0218841,120.51,120.42,17.0218841]
[1741663260960,198.0048,120.52,120.44,17.0218841]
[1741663260961,4.0048,120.52,120.44,17.0218841]
[1741663261164,17.0218841,120.51,120.45,38.7]
[1741663261962,0.06119515,120.49,120.47,0.06057022]
[1741663264758,0.06119515,120.49,120.48,8.3032]
[1741663265269,38.68,120.56,120.51,8.3012]
[1741663265468,38.68,120.56,120.48,4.3368]
[1741663265868,27.2597719,120.55,120.47,38.68]
[1741663266262,27.2597719,120.55,120.46,4.3798]
[1741663266469,0.0572296,120.52,120.5,0.05836616]
[1741663267574,38.7172296,120.52,120.5,0.05836616]
[1741663267772,0.0572296,120.52,120.5,0.05836616]
[1741663269064,8.3012,120.51,120.5,0.05836616]
[1741663270267,0.0572296,120.52,120.5,0.05836616]
[1741663271373,8.591,120.57,120.5,0.05836616]
[1741663271570,27.2597719,120.59,120.5,0.05836616]
[1741663271778,27.2597719,120.59,120.5,4.1841]
[1741663271975,35.5556719,120.59,120.54,8.2987]
[1741663272274,27.2597719,120.59,120.51,4.2552]
[1741663272574,0.05622796,120.56,120.54,0.05733211]
[1741663273665,8.2984,120.55,120.54,0.05733211]
[1741663274171,0.05622796,120.56,120.54,0.05733211]
[1741663275266,35.6208719,120.63,120.54,4.43023211]
[1741663275467,8.294,120.62,120.57,8.2966]
[1741663275667,8.3611,120.63,120.54,31.6326719]
[1741663276074,8.3611,120.63,120.54,4.3729]
[1741663276279,0.05706392,120.6,120.57,0.05263759]
[1741663276578,0.05706392,120.6,120.57,8.34953759]
[1741663277072,0.05706392,120.6,120.57,0.05263759]
[1741663277280,0.05706392,120.6,120.57,38.65263759]
[1741663278773,0.05706392,120.6,120.57,0.05263759]
[1741663279272,0.05706392,120.6,120.59,8.2957]
[1741663279470,0.05706392,120.6,120.57,0.05263759]
[1741663281177,0.05706392,120.6,120.58,38.58]
[1741663281775,0.05706392,120.6,120.59,8.2957]
[1741663281981,8.2918,120.65,120.58,38.58]
[1741663282374,12.1931,120.67,120.58,38.58]
[1741663282575,38.58,120.66,120.58,38.58]
[1741663283180,8.2936,120.62,120.61,0.06279553]
[1741663284076,38.58,120.62,120.54,4.3729]
[1741663284269,17.02641768,120.59,120.54,12.6713]
[1741663284471,8.2968,120.58,120.54,12.6713]
[1741663284784,25.32721768,120.61,120.54,4.3729]
[1741663284981,38.58,120.62,120.54,4.3729]
[1741663285179,0.0580617,120.59,120.58,8.2964]
[1741663285475,8.2911,120.66,120.58,4.378]
[1741663285681,8.2911,120.66,120.59,17.02641768]
[1741663285882,8.2911,120.66,120.62,8.2932]
[1741663286577,0.06123618,120.65,120.63,0.05770675]
[1741663287288,8.35313618,120.65,120.63,0.05770675]
[1741663287587,0.06123618,120.65,120.63,0.05770675]
[1741663290581,8.35303618,120.65,120.63,0.05770675]
[1741663291081,0.06123618,120.65,120.63,0.05770675]
[1741663291681,8.35303618,120.65,120.63,0.05770675]
[1741663291883,0.06123618,120.65,120.63,0.05770675]
[1741663292085,27.20719913,120.72,120.63,0.05770675]
[1741663292292,8.6427,120.73,120.63,27.20719913]
[1741663292589,8.6427,120.73,120.64,8.1571]
[1741663292788,8.6427,120.73,120.65,38.52]
[1741663293287,27.26949288,120.7,120.68,0.05869044]
[1741663293483,65.78949288,120.7,120.68,0.05869044]
[1741663293683,8.2888,120.69,120.68,0.05414119]
[1741663294191,38.58229375,120.7,120.62,38.52]
[1741663294390,27.20719913,120.69,120.62,38.52]
[1741663294590,38.52,120.7,120.62,38.52]
[1741663295391,8.3446752,120.67,120.65,0.0600574]
[1741663295892,8.2909,120.66,120.65,0.0600574]
[1741663303195,13.40602878,120.66,120.65,0.0600574]
[1741663304193,21.60967628,120.66,120.65,0.0600574]
[1741663305391,51.79877628,120.66,120.6,4.1326]
[1741663305596,40.54209283,120.65,120.57,4.2085]
[1741663305792,13.3348937,120.64,120.57,4.2085]
[1741663305994,8.2962,120.59,120.55,16.5268]
[1741663306593,0.05737134,120.58,120.56,0.06362207]
[1741663307691,8.297,120.57,120.56,0.06362207]
[1741663308492,13.4378436,120.57,120.56,0.06362207]
[1741663308794,0.05737134,120.58,120.56,0.06362207]
[1741663309301,5.14248698,120.57,120.56,0.06362207]
[1741663309596,5.14248698,120.57,120.5,12.573]
[1741663309799,5.14248698,120.56,120.5,12.573]
[1741663310097,27.20719913,120.57,120.49,98.55031015]
[1741663310294,5.14357875,120.56,120.49,98.55031015]
[1741663310600,5.14357875,120.55,120.49,98.55031015]
[1741663310797,8.35407351,120.54,120.51,0.06257058]
[1741663311500,8.2999,120.53,120.51,0.06257058]
[1741663313702,0.05457351,120.54,120.51,0.06257058]
[1741663314601,0.05457351,120.54,120.51,8.36337058]
[1741663315500,0.05457351,120.54,120.51,0.06257058]
[1741663315999,0.05457351,120.54,120.51,8.36337058]
[1741663316301,0.05457351,120.54,120.51,0.06257058]
[1741663316501,8.35417351,120.54,120.51,0.06257058]
[1741663317898,8.35417351,120.54,120.51,8.36377058]
[1741663319401,0.05457351,120.54,120.51,0.06257058]
[1741663319600,0.05457351,120.54,120.52,8.3003]
[1741663319802,0.05457351,120.54,120.51,0.06257058]
[1741663320202,0.05457351,120.54,120.53,8.2998]
[1741663320504,0.05457351,120.54,120.51,0.06257058]
[1741663321599,8.35407351,120.54,120.51,0.06257058]
[1741663322496,55.53032835,120.54,120.51,0.06257058]
[1741663322702,17.03575484,120.52,120.44,4.025]
[1741663322998,17.03575484,120.48,120.42,4.3953]
[1741663323198,8.3049,120.46,120.4,21.29875484]
[1741663323397,8.3049,120.46,120.4,115.42849908]
[1741663323598,55.47575484,120.48,120.42,8.3069]
[1741663323797,0.06374832,120.44,120.42,8.36819613]
[1741663324196,38.50374832,120.44,120.42,0.06129613]
[1741663325406,0.06374832,120.44,120.42,0.06129613]
[1741663326008,27.37112195,120.44,120.42,0.06129613]
[1741663326205,27.37112195,120.44,120.33,31.63667363]
[1741663326399,27.30737363,120.42,120.33,4.3293]
[1741663326609,27.30737363,120.4,120.33,4.3293]
[1741663326804,27.30737363,120.38,120.33,4.3293]
[1741663327001,46.7696,120.39,120.33,4.3293]
[1741663327308,0.06076597,120.37,120.35,0.05600748]
[1741663329606,0.06076597,120.37,120.29,38.44]
[1741663329815,4.3894,120.38,120.29,38.44]
[1741663330108,4.3894,120.38,120.33,8.3133]
[1741663330309,4.3894,120.38,120.29,38.44]
[1741663330510,4.3894,120.38,120.28,27.30737363]
[1741663330709,0.05878656,120.35,120.32,8.36365107]
[1741663331006,0.05878656,120.35,120.32,0.04985107]
[1741663332104,0.05878656,120.35,120.33,38.44]
[1741663332309,0.05878656,120.35,120.34,8.3129]
[1741663332514,38.46,120.4,120.33,42.5253]
[1741663332711,4.2967,120.43,120.34,31.60387363]
[1741663332909,4.3356,120.45,120.36,27.30737363]
[1741663333111,27.30737363,120.44,120.34,31.60387363]
[1741663333311,35.61497363,120.42,120.34,4.2965]
[1741663333516,27.30737363,120.44,120.34,4.2965]
[1741663333813,0.05929772,120.39,120.37,0.05538864]
[1741663334014,0.05929772,120.39,120.38,8.3096]
[1741663334214,27.30737363,120.44,120.38,8.3096]
[1741663334513,0.05338674,120.4,120.36,8.3112]
[1741663334710,0.05338674,120.4,120.34,4.2965]
[1741663334907,0.05338674,120.4,120.37,0.05884376]
[1741663335212,0.05338674,120.4,120.3,27.30737363]
[1741663335213,27.30737363,120.38,120.28,38.44]
[1741663335509,8.3116,120.36,120.28,46.9162]
[1741663335708,65.74737363,120.38,120.35,8.312]
[1741663336114,38.44,120.38,120.35,8.312]
[1741663336310,38.50234526,120.38,120.35,8.36179387]
[1741663336616,38.50234526,120.38,120.36,8.3114]
[1741663337013,38.50234526,120.38,120.35,0.04979387]
[1741663337714,38.50234526,120.38,120.35,8.36159387]
[1741663338109,0.06234526,120.38,120.36,8.311]
[1741663338417,0.06234526,120.38,120.35,0.04979387]
[1741663338715,0.06234526,120.38,120.36,38.44]
[1741663339211,0.06234526,120.38,120.35,0.04979387]
[1741663339212,27.36971889,120.38,120.35,0.04979387]
[1741663339509,8.3115,120.37,120.35,0.04979387]
[1741663339714,27.36971889,120.38,120.35,0.04979387]
[1741663340112,27.30737363,120.36,120.29,8.1809]
[1741663340312,38.44,120.35,120.29,8.1809]
[1741663340621,46.7525,120.35,120.31,8.3146]
[1741663341416,0.06281895,120.34,120.31,8.3146]
[1741663342213,0.06281895,120.34,120.29,8.1809]
[1741663343115,0.06281895,120.34,120.31,8.3149]
[1741663343317,0.06281895,120.34,120.29,8.1809]
[1741663344715,8.37611895,120.34,120.3,8.3154]
[1741663345215,0.06281895,120.34,120.29,8.1809]
[1741663345721,0.06281895,120.34,120.31,8.3144]
[1741663346114,0.06281895,120.34,120.29,8.1809]
[1741663346614,0.06281895,120.34,120.31,8.3148]
[1741663346819,0.06281895,120.34,120.29,8.1809]
[1741663347314,8.37621895,120.34,120.3,8.3152]
[1741663347720,0.06281895,120.34,120.25,27.30737363]
[1741663347920,8.3145,120.32,120.27,8.3171]
[1741663348120,0.05708594,120.31,120.27,8.3171]
[1741663348319,0.05708594,120.31,120.25,38.44]
[1741663348523,38.49708594,120.31,120.23,27.30737363]
[1741663348822,38.44,120.31,120.23,65.72737363]
[1741663349121,0.05348944,120.28,120.24,38.42]
[1741663349621,65.72737363,120.36,120.25,1.50289335]
[1741663350011,65.72737363,120.36,120.27,8.3175]
[1741663350622,8.3148,120.32,120.3,0.05522775]
[1741663350915,0.06069832,120.33,120.3,0.05522775]
[1741663351115,8.315,120.31,120.3,0.05522775]
[1741663352224,38.42,120.32,120.3,0.05522775]
[1741663356821,8.315,120.31,120.3,0.05522775]
[1741663358123,55.51768161,120.32,120.22,281.44865126]
[1741663358328,4.0162,120.3,120.21,17.09768161]
[1741663358526,4.0162,120.3,120.23,17.09768161]
[1741663358829,12.5994,120.31,120.23,17.09768161]
[1741663359022,12.5994,120.31,120.25,8.3185]
[1741663359222,12.5994,120.31,120.25,38.4]
[1741663359223,8.3161,120.3,120.25,38.4]
[1741663359426,0.05374778,120.29,120.25,38.4]
[1741663362129,0.05374778,120.29,120.25,55.49768161]
[1741663362428,0.05374778,120.29,120.25,38.4]
[1741663362720,0.05374778,120.29,120.25,55.49768161]
[1741663362923,17.09768161,120.36,120.27,17.09768161]
[1741663363127,17.09768161,120.36,120.28,8.3489]
[1741663363426,17.09768161,120.34,120.26,17.09768161]
[1741663363628,8.3147,120.32,120.27,8.3173]
[1741663364026,0.05254568,120.31,120.28,0.05374778]
[1741663364231,8.3159,120.3,120.28,0.05374778]
[1741663365234,0.05254568,120.31,120.28,0.05374778]
[1741663365824,8.3164,120.29,120.28,0.05374778]
[1741663366027,0.05254568,120.31,120.28,0.05374778]
[1741663366428,5.15375188,120.3,120.28,0.05374778]
[1741663366733,0.05254568,120.31,120.28,0.05374778]
[1741663367232,8.36764568,120.31,120.28,0.05374778]
[1741663367534,5.16468784,120.3,120.28,0.05374778]
[1741663367733,25.41338161,120.3,120.28,0.05374778]
[1741663367934,0.05254568,120.31,120.28,0.05374778]
[1741663368132,5.16472605,120.3,120.28,0.05374778]
[1741663368328,5.16472605,120.29,120.28,0.05374778]
[1741663368727,5.17105218,120.29,120.28,0.05374778]
[1741663369335,5.17412268,120.29,120.28,0.05374778]
[1741663369736,5.17412268,120.29,120.28,8.37074778]
[1741663369928,0.05254568,120.31,120.28,8.37074778]
[1741663370126,5.17383788,120.3,120.28,8.37074778]
[1741663370325,0.05254568,120.31,120.28,8.37074778]
[1741663370631,5.17724319,120.3,120.28,8.37074778]
[1741663370833,0.05254568,120.31,120.28,8.37074778]
[1741663371025,5.17719217,120.3,120.28,8.37074778]
[1741663371230,5.18050617,120.29,120.28,8.37074778]
[1741663372036,0.05254568,120.31,120.28,0.05374778]
[1741663372731,0.05254568,120.31,120.28,8.37044778]
[1741663372932,0.05254568,120.31,120.28,0.05374778]
[1741663373335,5.09985552,120.3,120.28,0.05374778]
[1741663373533,8.3157,120.3,120.28,0.05374778]
[1741663373737,0.05254568,120.31,120.28,0.05374778]
[1741663373932,22.19825692,120.3,120.2,21.28838161]
[1741663374134,38.41254568,120.31,120.21,8.3215]
[1741663374135,17.09768161,120.27,120.21,8.3215]
[1741663374428,5.10057531,120.26,120.21,8.3215]
[1741663374626,55.45768161,120.27,120.2,4.1907]
[1741663374837,13.41959846,120.26,120.22,8.3208]
[1741663375042,0.06156045,120.25,120.22,8.3208]
[1741663375243,0.06156045,120.25,120.2,21.28838161]
[1741663375443,0.06156045,120.25,120.22,17.09768161]
[1741663375650,0.06156045,120.25,120.23,38.36]
[1741663376144,46.676,120.3,120.26,8.3184]
[1741663376345,46.676,120.3,120.23,38.36]
[1741663377238,38.36,120.3,120.23,38.36]
[1741663377441,0.05297298,120.28,120.27,8.3177]
[1741663378554,59.70698161,120.33,120.3,8.3156]
[1741663378852,59.70698161,120.33,120.27,38.34]
[1741663379356,68.02068161,120.33,120.29,8.3159]
[1741663379556,59.70698161,120.33,120.29,8.3159]
[1741663379853,0.05853412,120.32,120.3,0.05294987]
[1741663380455,0.05853412,120.32,120.31,8.315]
[1741663380650,137.03293988,120.39,120.32,17.09768161]
[1741663381154,4.2662,120.4,120.32,17.09768161]
[1741663381355,22.14762897,120.39,120.31,42.6184]
[1741663381554,8.3113,120.37,120.32,8.314]
[1741663381755,0.05318217,120.36,120.34,0.05451234]
[1741663382261,17.09768161,120.35,120.29,4.2733]
[1741663382449,5.0509753,120.34,120.29,4.2733]
[1741663382654,38.34,120.34,120.29,4.2733]
[1741663382857,17.09768161,120.33,120.27,4.3439]
[1741663383052,38.34,120.34,120.27,4.3439]
[1741663383453,0.0533633,120.32,120.29,0.05571158]
[1741663384948,0.0533633,120.32,120.3,8.3151]
[1741663385659,0.0533633,120.32,120.29,0.05571158]
[1741663386251,0.0533633,120.32,120.31,8.315]
[1741663386759,0.0533633,120.32,120.3,8.3154]
[1741663387458,0.0533633,120.32,120.29,0.05571158]
[1741663387958,17.09768161,120.37,120.29,0.05571158]
[1741663388157,5.05189693,120.36,120.3,55.39768161]
[1741663388359,55.39768161,120.39,120.31,8.3147]
[1741663388563,17.09768161,120.35,120.28,4.333]
[1741663388862,17.09768161,120.37,120.31,8.3146]
[1741663389164,0.06360459,120.35,120.33,0.05757585]
[1741663389762,8.37620459,120.35,120.33,0.05757585]
[1741663390154,0.06360459,120.35,120.33,0.05757585]
[1741663390558,13.36365038,120.34,120.33,0.05757585]
[1741663390755,5.05075038,120.34,120.33,0.05757585]
[1741663390962,5.05075038,120.34,120.28,4.333]
[1741663391162,55.39768161,120.35,120.28,21.43068161]
[1741663391461,5.05094057,120.34,120.28,21.43068161]
[1741663391663,21.08138161,120.4,120.28,4.333]
[1741663391868,43.35095238,120.39,120.3,17.09768161]
[1741663392068,5.05095238,120.38,120.3,17.09768161]
[1741663392369,8.37431762,120.36,120.33,0.0635511]
[1741663392570,0.06281762,120.36,120.33,0.0635511]
[1741663393258,0.06281762,120.36,120.33,8.3767511]
[1741663394063,0.06281762,120.36,120.33,0.0635511]
[1741663394271,8.37471762,120.36,120.33,0.0635511]
[1741663395664,8.3126,120.35,120.33,0.0635511]
[1741663395869,0.06281762,120.36,120.33,0.0635511]
[1741663397369,8.3129,120.34,120.33,0.0635511]
[1741663397571,38.28,120.35,120.28,21.43068161]
[1741663397770,8.3148,120.32,120.28,12.6497]
[1741663398370,8.3158,120.3,120.26,21.37098161]
[1741663398566,17.09768161,120.34,120.26,21.37098161]
[1741663398867,0.06139214,120.29,120.27,0.05079156]
[1741663399068,8.3154,120.31,120.27,8.36809156]
[1741663399269,0.05325674,120.29,120.27,8.36809156]
[1741663399574,0.05325674,120.29,120.27,0.05079156]
[1741663399771,0.05325674,120.29,120.28,8.317]
[1741663400170,4.2586,120.35,120.28,19.59768161]
[1741663400371,55.35768161,120.38,120.3,17.09768161]
[1741663400564,17.09768161,120.36,120.29,38.26]
[1741663400769,8.3117,120.36,120.32,8.3139]
[1741663401869,8.3117,120.36,120.3,17.09768161]
[1741663402075,0.05255446,120.35,120.33,0.05848098]
[1741663405381,0.05255446,120.35,120.33,8.37208098]
[1741663405569,0.05255446,120.35,120.33,0.05848098]
[1741663405774,25.46088161,120.42,120.34,55.33768161]
[1741663406077,5.04287602,120.4,120.34,55.33768161]
[1741663406274,16.6709,120.42,120.34,55.33768161]
[1741663406474,5.04122766,120.4,120.38,8.3101]
[1741663406676,16.6709,120.42,120.38,8.3101]
[1741663406871,0.0540319,120.4,120.38,0.05548452]
[1741663407174,17.09768161,120.44,120.38,0.05548452]
[1741663407382,5.03987405,120.43,120.38,17.15316613]
[1741663407573,8.3071,120.43,120.38,8.36528452]
[1741663408277,8.36208748,120.42,120.38,8.36528452]
[1741663408779,8.3083,120.41,120.38,0.05548452]
[1741663408976,0.05468748,120.42,120.38,0.05548452]
[1741663409377,0.05468748,120.42,120.38,8.36558452]
[1741663409674,0.05468748,120.42,120.38,0.05548452]
[1741663409880,0.05468748,120.42,120.4,8.3087]
[1741663410277,0.05468748,120.42,120.38,0.05548452]
[1741663411181,0.05468748,120.42,120.38,8.36538452]
[1741663412180,0.05468748,120.42,120.38,0.05548452]
[1741663412982,0.05468748,120.42,120.38,8.36508452]
[1741663414178,0.05468748,120.42,120.38,0.05548452]
[1741663414981,0.05468748,120.42,120.38,8.36498452]
[1741663415479,0.05468748,120.42,120.38,0.05548452]
[1741663416284,0.05468748,120.42,120.39,8.3094]
[1741663416682,0.05468748,120.42,120.38,0.05548452]
[1741663417284,0.05468748,120.42,120.4,8.3084]
[1741663417583,0.05468748,120.42,120.39,17.09768161]
[1741663417784,28.4877672,120.54,120.41,17.09768161]
[1741663417982,17.19526321,120.53,120.45,17.09768161]
[1741663418187,17.19526321,120.53,120.46,38.2]
[1741663418188,5.01896321,120.52,120.46,38.2]
[1741663418382,8.303,120.49,120.46,38.2]
[1741663418582,8.303,120.49,120.43,55.27768161]
[1741663418885,8.3047,120.46,120.45,0.06074086]
[1741663419788,8.3061,120.44,120.4,4.167]
[1741663419988,8.3061,120.44,120.39,67.80418161]
[1741663420892,0.0576176,120.43,120.4,0.0611798]
[1741663422190,4.0162,120.48,120.41,17.09768161]
[1741663422492,38.16,120.5,120.43,17.09768161]
[1741663422683,8.5287,120.52,120.45,17.09768161]
[1741663422891,8.5287,120.52,120.47,17.09768161]
[1741663423388,0.05728992,120.51,120.48,0.0535009]
[1741663423986,8.35858992,120.51,120.48,0.0535009]
[1741663424186,0.05728992,120.51,120.48,0.0535009]
[1741663424686,8.3025,120.5,120.48,0.0535009]
[1741663424886,0.05728992,120.51,120.48,0.0535009]
[1741663425897,8.3019,120.5,120.48,0.0535009]
[1741663426388,0.05728992,120.51,120.48,0.0535009]
[1741663426691,8.3025,120.49,120.48,0.0535009]
[1741663426888,27.32813483,120.51,120.42,38.14]
[1741663427093,8.305,120.46,120.42,46.4471]
[1741663427783,8.3045,120.47,120.42,46.4471]
[1741663427984,38.14,120.49,120.42,46.4471]
[1741663428292,0.06103932,120.46,120.43,0.05777641]
[1741663429188,8.36563932,120.46,120.43,0.05777641]
[1741663429396,0.06103932,120.46,120.43,8.36447641]
[1741663429896,0.06103932,120.46,120.43,0.05777641]
[1741663431497,0.06103932,120.46,120.43,8.36437641]
[1741663436103,0.06103932,120.46,120.43,0.05777641]
[1741663437407,8.306,120.44,120.43,0.05777641]
[1741663438809,8.3075,120.42,120.37,312.16]
[1741663439205,8.3075,120.42,120.39,8.3094]
[1741663439607,65.37084491,120.45,120.36,4.1678]
[1741663439806,65.37084491,120.45,120.36,12.479]
[1741663440004,0.05711437,120.42,120.39,0.05797217]
[1741663440207,8.3092,120.4,120.39,0.05797217]
[1741663444719,8.3102,120.38,120.35,38.1]
[1741663444910,4.2505,120.41,120.35,55.17425554]
[1741663445113,38.1,120.44,120.35,55.17425554]
[1741663445315,8.3085,120.41,120.35,55.17425554]
[1741663445521,38.1,120.44,120.36,8.3112]
[1741663445716,0.06343098,120.39,120.37,0.06094432]
[1741663445916,38.1,120.44,120.37,0.06094432]
[1741663446115,0.05942788,120.39,120.37,0.06094432]
[1741663446318,38.1,120.44,120.37,0.06094432]
[1741663446517,5.02854687,120.43,120.37,0.06094432]
[1741663446719,0.06356223,120.42,120.37,0.06094432]
[1741663447218,5.02879916,120.41,120.37,0.06094432]
[1741663447417,0.06356223,120.42,120.37,0.06094432]
[1741663447615,8.3101,120.38,120.37,0.06094432]
[1741663449227,17.12948047,120.39,120.32,8.2046]
[1741663449420,17.12948047,120.39,120.31,55.15425554]
[1741663449421,4.0665,120.38,120.31,55.15425554]
[1741663450027,8.3115,120.36,120.32,8.3139]
[1741663450224,0.05316318,120.35,120.33,0.03200507]
[1741663450723,0.05316318,120.35,120.33,17.10626061]
[1741663450924,5.03388379,120.42,120.35,17.07425554]
[1741663451119,13.34238379,120.41,120.37,8.3107]
[1741663451327,8.3085,120.41,120.37,8.3107]
[1741663451924,0.05891783,120.4,120.38,0.0547271]
[1741663452121,11.39008559,120.48,120.39,55.15425554]
[1741663452331,11.39008559,120.48,120.42,25.38135554]
[1741663452525,11.39008559,120.48,120.43,38.08]
[1741663453224,0.06019736,120.47,120.44,0.06094371]
[1741663454029,0.06019736,120.47,120.46,17.07425554]
[1741663454228,45.64242367,120.58,120.45,27.26504466]
[1741663454229,38.06,120.53,120.45,27.26504466]
[1741663454530,5.02908973,120.52,120.47,8.3034]
[1741663454727,5.02908973,120.51,120.47,8.3034]
[1741663454926,46.3598,120.53,120.47,8.3034]
[1741663455129,5.02894397,120.52,120.43,65.34504466]
[1741663455327,5.09288686,120.51,120.49,0.05565081]
[1741663455528,5.02894397,120.5,120.43,65.34504466]
[1741663455733,4.0596,120.52,120.43,65.34504466]
[1741663455947,5.02878631,120.51,120.43,65.34504466]
[1741663456135,8.3033,120.48,120.43,46.3865]
[1741663456435,8.3033,120.48,120.43,38.08]
[1741663456635,0.06138712,120.47,120.44,0.0524164]
[1741663457129,0.06138712,120.47,120.44,8.3583164]
[1741663457329,0.06138712,120.47,120.44,0.0524164]
[1741663457924,0.06138712,120.47,120.45,27.26504466]
[1741663458130,4.0596,120.52,120.45,27.26504466]
[1741663458425,8.2992,120.54,120.45,27.26504466]
[1741663458633,5.02704442,120.53,120.45,27.26504466]
[1741663458929,8.2992,120.54,120.48,8.3027]
[1741663459134,5.02687529,120.53,120.47,38.04]
[1741663459329,5.08002963,120.52,120.5,0.05958111]
[1741663459536,0.05315434,120.52,120.5,0.05958111]
[1741663460033,8.35405434,120.52,120.5,0.05958111]
[1741663461829,0.05315434,120.52,120.5,0.05958111]
[1741663464937,38.05315434,120.52,120.43,27.26504466]
[1741663465138,8.3021,120.5,120.45,8.3049]
[1741663465338,38.0,120.52,120.44,38.0]
[1741663465743,46.3007,120.52,120.48,8.3029]
[1741663465940,8.3007,120.52,120.48,8.3029]
[1741663466142,0.06346509,120.51,120.49,0.05248555]
[1741663466433,0.06346509,120.51,120.49,8.35438555]
[1741663467243,0.06346509,120.51,120.5,8.3019]
[1741663467631,0.06346509,120.51,120.49,0.05248555]
[1741663468142,0.06346509,120.51,120.49,8.35468555]